[Event "Early-Titled-Tuesday-Blitz-January-30-2024"]
[Site "Chess.com"]
[Date "2024.01.30"]
[Round "8"]
[White "GMRAVEN_ON_YOUTUBE"]
[Black "Hikaru"]
[Result "0-1"]
[WhiteElo "2789"]
[BlackElo "3276"]
[TimeControl "180+1"]
[EndTime "9:30:49 PST"]
[Termination "Hikaru won by resignation"]

1. f4 {[%clk 0:03:00.9]} 1... d5 {[%clk 0:02:56.5]} 2. Nf3 {[%clk 0:02:59.9]}
2... g6 {[%clk 0:02:53]} 3. e3 {[%clk 0:03:00.2]} 3... Bg7 {[%clk 0:02:51.3]} 4.
c4 {[%clk 0:03:00.8]} 4... e6 {[%clk 0:02:48.6]} 5. d4 {[%clk 0:02:57.9]} 5...
dxc4 {[%clk 0:02:45.1]} 6. Bxc4 {[%clk 0:02:57.6]} 6... c5 {[%clk 0:02:45.6]} 7.
O-O {[%clk 0:02:32.5]} 7... cxd4 {[%clk 0:02:44.1]} 8. exd4 {[%clk 0:02:33.4]}
8... Ne7 {[%clk 0:02:43.8]} 9. Nc3 {[%clk 0:02:32.8]} 9... O-O {[%clk
0:02:44.1]} 10. Be3 {[%clk 0:02:30.6]} 10... Nbc6 {[%clk 0:02:43.6]} 11. Qd2
{[%clk 0:02:15.9]} 11... b6 {[%clk 0:02:42.4]} 12. Rad1 {[%clk 0:02:14.8]} 12...
Bb7 {[%clk 0:02:38.7]} 13. Ne5 {[%clk 0:02:15.1]} 13... Rc8 {[%clk 0:02:37.1]}
14. Be2 {[%clk 0:02:08.5]} 14... Nb4 {[%clk 0:02:35.3]} 15. Bf3 {[%clk
0:02:08.2]} 15... Bxf3 {[%clk 0:02:35.1]} 16. Rxf3 {[%clk 0:02:08]} 16... Nbd5
{[%clk 0:02:33.1]} 17. Bf2 {[%clk 0:02:02.8]} 17... Qc7 {[%clk 0:02:29.4]} 18.
Bh4 {[%clk 0:01:53.3]} 18... Nf5 {[%clk 0:02:20.7]} 19. Nxd5 {[%clk 0:01:48.5]}
19... exd5 {[%clk 0:02:21.6]} 20. Bf2 {[%clk 0:01:49]} 20... Qc2 {[%clk
0:02:11.8]} 21. Rc3 {[%clk 0:01:15.6]} 21... Qxd2 {[%clk 0:02:10]} 22. Rxd2
{[%clk 0:01:16]} 22... Rxc3 {[%clk 0:02:10.3]} 23. bxc3 {[%clk 0:01:16.6]} 23...
Rc8 {[%clk 0:02:10.3]} 24. Rc2 {[%clk 0:01:15.1]} 24... Nd6 {[%clk 0:02:10.4]}
25. Kf1 {[%clk 0:01:03.4]} 25... Nb5 {[%clk 0:02:08.6]} 26. Ke2 {[%clk
0:00:36.8]} 26... Rxc3 {[%clk 0:02:03.1]} 27. Rxc3 {[%clk 0:00:35.2]} 27...
Nxc3+ {[%clk 0:02:04]} 28. Kd3 {[%clk 0:00:34]} 28... Bxe5 {[%clk 0:01:45.2]}
29. dxe5 {[%clk 0:00:32.1]} 29... Nb5 {[%clk 0:01:19.3]} 30. a4 {[%clk
0:00:26.6]} 30... Nc7 {[%clk 0:01:19.5]} 31. Kd4 {[%clk 0:00:23.9]} 31... Kf8
{[%clk 0:01:12.2]} 32. g4 {[%clk 0:00:22.4]} 32... Ke7 {[%clk 0:01:11.6]} 33. f5
{[%clk 0:00:22.4]} 33... gxf5 {[%clk 0:01:12.1]} 34. gxf5 {[%clk 0:00:23.3]}
34... Kd7 {[%clk 0:01:12.7]} 35. Bh4 {[%clk 0:00:18.3]} 35... a6 {[%clk
0:01:12.8]} 36. Be1 {[%clk 0:00:17.7]} 36... Kc6 {[%clk 0:01:10.7]} 37. Bh4
{[%clk 0:00:17.7]} 37... Ne8 {[%clk 0:01:03.3]} 38. Ke3 {[%clk 0:00:11.3]} 38...
b5 {[%clk 0:00:59.7]} 39. axb5+ {[%clk 0:00:11.9]} 39... axb5 {[%clk 0:00:58.9]}
40. Be1 {[%clk 0:00:12.1]} 40... Kc5 {[%clk 0:00:58.3]} 41. Kf4 {[%clk
0:00:12.2]} 41... b4 {[%clk 0:00:57.2]} 42. e6 {[%clk 0:00:12.3]} 42... f6
{[%clk 0:00:50.1]} 43. Ke3 {[%clk 0:00:09.4]} 43... Kc4 {[%clk 0:00:45.8]} 44.
Kd2 {[%clk 0:00:05.7]} 44... Kd4 {[%clk 0:00:34.8]} 45. Ke2 {[%clk 0:00:04.1]}
45... b3 {[%clk 0:00:34.4]} 46. Kd2 {[%clk 0:00:04.4]} 46... Ke4 {[%clk
0:00:34.8]} 47. Kc3 {[%clk 0:00:04.8]} 47... Kxf5 {[%clk 0:00:35.4]} 48. Kxb3
{[%clk 0:00:05.7]} 48... Kxe6 {[%clk 0:00:36]} 49. Kc3 {[%clk 0:00:06.1]} 49...
Nd6 {[%clk 0:00:36.4]} 50. Kd4 {[%clk 0:00:06.7]} 50... Nf5+ {[%clk 0:00:36.7]}
51. Kd3 {[%clk 0:00:07.3]} 51... Ne7 {[%clk 0:00:36.6]} 52. Bc3 {[%clk
0:00:07.1]} 52... Nc6 {[%clk 0:00:35.7]} 53. Bb2 {[%clk 0:00:06.8]} 53... Kf5
{[%clk 0:00:34.3]} 54. Ke3 {[%clk 0:00:07.1]} 54... d4+ {[%clk 0:00:27.6]} 55.
Kf3 {[%clk 0:00:06.5]} 55... Ne5+ {[%clk 0:00:27.3]} 56. Ke2 {[%clk 0:00:06.9]}
56... Ke4 {[%clk 0:00:27.8]} 57. Ba1 {[%clk 0:00:06.9]} 57... f5 {[%clk
0:00:28.1]} 58. Kf2 {[%clk 0:00:07.3]} 58... f4 {[%clk 0:00:28.4]} 59. Ke2
{[%clk 0:00:07.5]} 59... d3+ {[%clk 0:00:28.4]} 60. Kf2 {[%clk 0:00:06.8]} 60...
Nc4 {[%clk 0:00:28.1]} 61. Bc3 {[%clk 0:00:06.6]} 61... d2 {[%clk 0:00:28.5]}
62. Ke2 {[%clk 0:00:06.4]} 62... f3+ {[%clk 0:00:29]} 63. Kd1 {[%clk 0:00:04.8]}
63... f2 {[%clk 0:00:29.3]} 64. Ke2 {[%clk 0:00:02.7]} 64... f1=Q+ {[%clk
0:00:29.6]} 0-1

[Event "Early-Titled-Tuesday-Blitz-January-30-2024"]
[Site "Chess.com"]
[Date "2024.01.30"]
[Round "8"]
[White "ljuks68"]
[Black "ChessSwole"]
[Result "1-0"]
[WhiteElo "2441"]
[BlackElo "2598"]
[TimeControl "180+1"]
[EndTime "9:30:49 PST"]
[Termination "ljuks68 won on time"]

1. e4 {[%clk 0:03:00.9]} 1... c5 {[%clk 0:03:00]} 2. Nf3 {[%clk 0:02:59.6]} 2...
Nc6 {[%clk 0:03:00.5]} 3. d4 {[%clk 0:02:59.9]} 3... cxd4 {[%clk 0:03:00.9]} 4.
Nxd4 {[%clk 0:03:00.5]} 4... Nf6 {[%clk 0:03:00.7]} 5. Nc3 {[%clk 0:03:00.8]}
5... h5 {[%clk 0:03:00.8]} 6. h3 {[%clk 0:02:40]} 6... d6 {[%clk 0:02:43.7]} 7.
Bg5 {[%clk 0:02:34.6]} 7... Qb6 {[%clk 0:02:36.9]} 8. Ndb5 {[%clk 0:01:59.9]}
8... a6 {[%clk 0:01:59]} 9. Bxf6 {[%clk 0:01:56.9]} 9... axb5 {[%clk 0:01:58.7]}
10. Nd5 {[%clk 0:01:29.7]} 10... Qa5+ {[%clk 0:01:54.7]} 11. Bc3 {[%clk
0:01:29.4]} 11... b4 {[%clk 0:01:52.6]} 12. Bd4 {[%clk 0:01:20.4]} 12... e6
{[%clk 0:01:30.3]} 13. Bb6 {[%clk 0:01:13.5]} 13... exd5 {[%clk 0:01:15.5]} 14.
Bxa5 {[%clk 0:01:10.8]} 14... Rxa5 {[%clk 0:01:16.4]} 15. exd5 {[%clk
0:01:10.1]} 15... Ne5 {[%clk 0:01:15]} 16. f4 {[%clk 0:01:03.3]} 16... Ng6
{[%clk 0:01:12.5]} 17. Qd2 {[%clk 0:00:59.2]} 17... Be7 {[%clk 0:01:06.6]} 18.
Qxb4 {[%clk 0:00:58.7]} 18... Rxd5 {[%clk 0:01:03.3]} 19. Bb5+ {[%clk
0:00:57.9]} 19... Kf8 {[%clk 0:00:58.1]} 20. O-O {[%clk 0:00:57.8]} 20... h4
{[%clk 0:00:44.4]} 21. Bd3 {[%clk 0:00:45.9]} 21... Rhh5 {[%clk 0:00:35.9]} 22.
Rad1 {[%clk 0:00:36.9]} 22... Kg8 {[%clk 0:00:25.9]} 23. a4 {[%clk 0:00:32]}
23... Rc5 {[%clk 0:00:21.6]} 24. Be2 {[%clk 0:00:22]} 24... Rhd5 {[%clk
0:00:14.9]} 25. Rxd5 {[%clk 0:00:21.2]} 25... Rxd5 {[%clk 0:00:15.8]} 26. Bf3
{[%clk 0:00:21.2]} 26... Rf5 {[%clk 0:00:15]} 27. Bxb7 {[%clk 0:00:21]} 27...
Be6 {[%clk 0:00:13.8]} 28. Be4 {[%clk 0:00:19.1]} 28... d5 {[%clk 0:00:13.6]}
29. Bxf5 {[%clk 0:00:18.9]} 29... Bxb4 {[%clk 0:00:13.7]} 30. Bxe6 {[%clk
0:00:16.5]} 30... fxe6 {[%clk 0:00:14]} 31. c3 {[%clk 0:00:16.7]} 31... Bc5+
{[%clk 0:00:13.7]} 32. Kh2 {[%clk 0:00:16]} 32... Bd6 {[%clk 0:00:12.2]} 33. g3
{[%clk 0:00:14.5]} 33... hxg3+ {[%clk 0:00:13.1]} 34. Kxg3 {[%clk 0:00:14.3]}
34... Kf7 {[%clk 0:00:13.7]} 35. a5 {[%clk 0:00:14]} 35... Ke7 {[%clk
0:00:13.1]} 36. a6 {[%clk 0:00:14.3]} 36... Kd7 {[%clk 0:00:13.6]} 37. Kg4
{[%clk 0:00:12.5]} 37... Bc5 {[%clk 0:00:13.6]} 38. Kg5 {[%clk 0:00:11.9]} 38...
Ne7 {[%clk 0:00:12.6]} 39. h4 {[%clk 0:00:10.5]} 39... Nf5 {[%clk 0:00:11.3]}
40. Kg6 {[%clk 0:00:10.1]} 40... Nxh4+ {[%clk 0:00:11.3]} 41. Kf7 {[%clk
0:00:10.6]} 41... Nf5 {[%clk 0:00:11.4]} 42. Re1 {[%clk 0:00:10.5]} 42... Ne3
{[%clk 0:00:10.4]} 43. b4 {[%clk 0:00:09.9]} 43... Bb6 {[%clk 0:00:10.5]} 44.
Kxg7 {[%clk 0:00:10]} 44... Nc2 {[%clk 0:00:08.3]} 45. Re2 {[%clk 0:00:09.6]}
45... Na3 {[%clk 0:00:08.5]} 46. Kf7 {[%clk 0:00:10]} 46... Nb5 {[%clk
0:00:07.3]} 47. Rxe6 {[%clk 0:00:09.8]} 47... Kc7 {[%clk 0:00:06.9]} 48. Re7+
{[%clk 0:00:09.6]} 48... Kb8 {[%clk 0:00:07.4]} 49. Rb7+ {[%clk 0:00:09.9]}
49... Ka8 {[%clk 0:00:06.9]} 50. Rxb6 {[%clk 0:00:10.5]} 50... Nxc3 {[%clk
0:00:07.1]} 51. f5 {[%clk 0:00:10.2]} 51... Ka7 {[%clk 0:00:07.1]} 52. Rd6
{[%clk 0:00:10.1]} 52... Ne4 {[%clk 0:00:05.2]} 53. Rxd5 {[%clk 0:00:10]} 53...
Kxa6 {[%clk 0:00:05.9]} 54. f6 {[%clk 0:00:10.1]} 54... Kb6 {[%clk 0:00:05.7]}
55. Ke7 {[%clk 0:00:10.4]} 55... Kc6 {[%clk 0:00:06.1]} 56. Rd1 {[%clk
0:00:10.4]} 56... Nc3 {[%clk 0:00:06.1]} 57. Rc1 {[%clk 0:00:10.4]} 1-0

[Event "Early-Titled-Tuesday-Blitz-January-30-2024"]
[Site "Chess.com"]
[Date "2024.01.30"]
[Round "8"]
[White "korkmaz16"]
[Black "ansko1999"]
[Result "1/2-1/2"]
[WhiteElo "2459"]
[BlackElo "2672"]
[TimeControl "180+1"]
[EndTime "9:30:51 PST"]
[Termination "Game drawn - insufficient material"]

1. e4 {[%clk 0:02:54.9]} 1... e5 {[%clk 0:02:59.1]} 2. Nf3 {[%clk 0:02:53.8]}
2... Nc6 {[%clk 0:02:59.7]} 3. Bc4 {[%clk 0:02:47.4]} 3... Bc5 {[%clk
0:02:59.3]} 4. c3 {[%clk 0:02:47.7]} 4... Nf6 {[%clk 0:02:59.1]} 5. d4 {[%clk
0:02:48.2]} 5... exd4 {[%clk 0:03:00]} 6. cxd4 {[%clk 0:02:48.6]} 6... Bb4+
{[%clk 0:02:59.8]} 7. Nc3 {[%clk 0:02:49.2]} 7... Nxe4 {[%clk 0:02:59.4]} 8. O-O
{[%clk 0:02:49.8]} 8... Bxc3 {[%clk 0:02:58.5]} 9. d5 {[%clk 0:02:50.3]} 9...
Ne7 {[%clk 0:02:38.1]} 10. bxc3 {[%clk 0:02:47.6]} 10... d6 {[%clk 0:02:31.1]}
11. Re1 {[%clk 0:02:44.7]} 11... Nf6 {[%clk 0:02:20]} 12. Bg5 {[%clk 0:02:43.2]}
12... Kf8 {[%clk 0:02:12.3]} 13. Bxf6 {[%clk 0:02:39.7]} 13... gxf6 {[%clk
0:02:13.2]} 14. Qd2 {[%clk 0:02:35.4]} 14... h5 {[%clk 0:02:09.3]} 15. Rab1
{[%clk 0:02:28.1]} 15... Ng6 {[%clk 0:02:07.9]} 16. Bb5 {[%clk 0:02:23.7]} 16...
Kg7 {[%clk 0:01:51.3]} 17. Nd4 {[%clk 0:02:21.8]} 17... f5 {[%clk 0:01:42]} 18.
Bd3 {[%clk 0:02:19]} 18... Qf6 {[%clk 0:01:39.1]} 19. f4 {[%clk 0:02:18.1]}
19... h4 {[%clk 0:01:26.3]} 20. Qf2 {[%clk 0:02:05.8]} 20... c6 {[%clk
0:01:15.9]} 21. dxc6 {[%clk 0:02:02.7]} 21... bxc6 {[%clk 0:01:16.8]} 22. Nxc6
{[%clk 0:02:00.8]} 22... Be6 {[%clk 0:01:13.7]} 23. Nd4 {[%clk 0:01:59.1]} 23...
Rhe8 {[%clk 0:00:52.6]} 24. Rb7 {[%clk 0:01:56.3]} 24... Re7 {[%clk 0:00:44.2]}
25. Rxe7 {[%clk 0:01:50.6]} 25... Nxe7 {[%clk 0:00:42.7]} 26. g4 {[%clk
0:01:41.3]} 26... fxg4 {[%clk 0:00:37.4]} 27. f5 {[%clk 0:01:40.3]} 27... Bd5
{[%clk 0:00:33.4]} 28. Qf4 {[%clk 0:01:35.9]} 28... Nc6 {[%clk 0:00:25.8]} 29.
Qxg4+ {[%clk 0:01:35]} 29... Kh6 {[%clk 0:00:25.4]} 30. Qf4+ {[%clk 0:01:33.2]}
30... Qg5+ {[%clk 0:00:25.4]} 31. Qxg5+ {[%clk 0:01:33.4]} 31... Kxg5 {[%clk
0:00:26.3]} 32. Nxc6 {[%clk 0:01:27]} 32... Bxc6 {[%clk 0:00:27.2]} 33. Kf2
{[%clk 0:01:26.8]} 33... Rb8 {[%clk 0:00:26.6]} 34. Re2 {[%clk 0:01:24]} 34...
a5 {[%clk 0:00:23.8]} 35. Rd2 {[%clk 0:01:21]} 35... Kf4 {[%clk 0:00:22.9]} 36.
Bc4 {[%clk 0:01:20.5]} 36... Be4 {[%clk 0:00:20.2]} 37. Bxf7 {[%clk 0:01:16.9]}
37... Bxf5 {[%clk 0:00:20.2]} 38. Rd4+ {[%clk 0:01:13.5]} 38... Be4 {[%clk
0:00:19.1]} 39. Bd5 {[%clk 0:01:12.1]} 39... Re8 {[%clk 0:00:12.4]} 40. Bxe4
{[%clk 0:01:09.8]} 40... Rxe4 {[%clk 0:00:12.5]} 41. Rxd6 {[%clk 0:01:10.1]}
41... Ra4 {[%clk 0:00:12.9]} 42. Rd2 {[%clk 0:01:10.2]} 42... Ra3 {[%clk
0:00:07.7]} 43. Rc2 {[%clk 0:01:09.9]} 43... Ke4 {[%clk 0:00:06.6]} 44. Re2+
{[%clk 0:01:05.8]} 44... Kd3 {[%clk 0:00:06.3]} 45. Re3+ {[%clk 0:01:06.3]}
45... Kc4 {[%clk 0:00:06.4]} 46. Re4+ {[%clk 0:01:03.6]} 46... Kxc3 {[%clk
0:00:07]} 47. Rxh4 {[%clk 0:01:03.8]} 47... Rxa2+ {[%clk 0:00:07.3]} 48. Kg3
{[%clk 0:01:04.2]} 48... a4 {[%clk 0:00:08]} 49. Rh8 {[%clk 0:01:03.5]} 49...
Rc2 {[%clk 0:00:05.8]} 50. Ra8 {[%clk 0:01:02.7]} 50... Kb3 {[%clk 0:00:05.8]}
51. h4 {[%clk 0:01:02.6]} 51... a3 {[%clk 0:00:05.1]} 52. h5 {[%clk 0:01:03]}
52... a2 {[%clk 0:00:04.8]} 53. h6 {[%clk 0:01:03.3]} 53... Kb2 {[%clk
0:00:05.2]} 54. h7 {[%clk 0:01:02.6]} 54... Rc3+ {[%clk 0:00:05.2]} 55. Kg4
{[%clk 0:01:02.5]} 55... Rc4+ {[%clk 0:00:03]} 56. Kg5 {[%clk 0:01:02.2]} 56...
Rc5+ {[%clk 0:00:03.2]} 57. Kg4 {[%clk 0:01:01]} 57... Rc4+ {[%clk 0:00:03.3]}
58. Kg3 {[%clk 0:01:01.5]} 58... Rc3+ {[%clk 0:00:03.6]} 59. Kg2 {[%clk
0:01:02]} 59... Rc2+ {[%clk 0:00:04.1]} 60. Kg1 {[%clk 0:01:02.4]} 60... Rc1+
{[%clk 0:00:04.6]} 61. Kg2 {[%clk 0:01:03]} 61... Rc2+ {[%clk 0:00:05]} 62. Kf3
{[%clk 0:01:02.9]} 62... Rc3+ {[%clk 0:00:05.7]} 63. Ke4 {[%clk 0:01:03]} 63...
Rh3 {[%clk 0:00:05.4]} 64. Rb8+ {[%clk 0:00:57.3]} 64... Kc2 {[%clk 0:00:04.4]}
65. Ra8 {[%clk 0:00:57.5]} 65... Kb1 {[%clk 0:00:03.5]} 66. Rb8+ {[%clk
0:00:55.8]} 66... Kc1 {[%clk 0:00:04]} 67. Ra8 {[%clk 0:00:55.5]} 67... Kb2
{[%clk 0:00:03.6]} 68. Rb8+ {[%clk 0:00:55.3]} 68... Ka1 {[%clk 0:00:03.3]} 69.
h8=Q+ {[%clk 0:00:54.7]} 69... Rxh8 {[%clk 0:00:03.5]} 70. Rxh8 {[%clk
0:00:55.4]} 70... Kb1 {[%clk 0:00:03.7]} 71. Rh1+ {[%clk 0:00:53.9]} 71... Kb2
{[%clk 0:00:03.9]} 72. Rh2+ {[%clk 0:00:54.4]} 72... Kb1 {[%clk 0:00:04.1]} 73.
Rh1+ {[%clk 0:00:53.6]} 73... Kb2 {[%clk 0:00:04.4]} 74. Rh2+ {[%clk 0:00:54]}
74... Kb1 {[%clk 0:00:04.9]} 75. Kd3 {[%clk 0:00:53.1]} 75... a1=Q {[%clk
0:00:03.2]} 76. Rh1+ {[%clk 0:00:53.2]} 76... Kb2 {[%clk 0:00:03.7]} 77. Rxa1
{[%clk 0:00:53.9]} 77... Kxa1 {[%clk 0:00:04.1]} 1/2-1/2

[Event "Early-Titled-Tuesday-Blitz-January-30-2024"]
[Site "Chess.com"]
[Date "2024.01.30"]
[Round "8"]
[White "viktorskliarov"]
[Black "Yurasova_Daria"]
[Result "1-0"]
[WhiteElo "2650"]
[BlackElo "2440"]
[TimeControl "180+1"]
[EndTime "9:30:53 PST"]
[Termination "viktorskliarov won on time"]

1. e4 {[%clk 0:03:00.9]} 1... e5 {[%clk 0:02:59.8]} 2. Nc3 {[%clk 0:03:00.6]}
2... Nc6 {[%clk 0:02:57]} 3. Bc4 {[%clk 0:03:00.8]} 3... Nf6 {[%clk 0:02:56.7]}
4. d3 {[%clk 0:03:01]} 4... Bc5 {[%clk 0:02:54.9]} 5. a3 {[%clk 0:03:00.2]} 5...
a6 {[%clk 0:02:53.5]} 6. h3 {[%clk 0:02:59.4]} 6... d6 {[%clk 0:02:52.5]} 7.
Nge2 {[%clk 0:03:00]} 7... O-O {[%clk 0:02:48]} 8. Ng3 {[%clk 0:03:00.2]} 8...
Be6 {[%clk 0:02:47]} 9. Nd5 {[%clk 0:03:00.4]} 9... Bxd5 {[%clk 0:02:42.1]} 10.
exd5 {[%clk 0:03:01.3]} 10... Ne7 {[%clk 0:02:41.9]} 11. Qf3 {[%clk 0:03:01]}
11... b5 {[%clk 0:02:37.3]} 12. Ba2 {[%clk 0:02:59.3]} 12... Ng6 {[%clk
0:02:16.3]} 13. Bg5 {[%clk 0:02:15.2]} 13... h6 {[%clk 0:02:16]} 14. Bxf6 {[%clk
0:02:15]} 14... Qxf6 {[%clk 0:02:16.9]} 15. Qxf6 {[%clk 0:02:14.9]} 15... gxf6
{[%clk 0:02:17.8]} 16. Ne4 {[%clk 0:02:11.7]} 16... f5 {[%clk 0:02:04.3]} 17.
Nxc5 {[%clk 0:02:11.2]} 17... dxc5 {[%clk 0:02:05.2]} 18. g3 {[%clk 0:02:07]}
18... Rad8 {[%clk 0:02:02.9]} 19. c4 {[%clk 0:01:32.5]} 19... Rfe8 {[%clk
0:01:51.3]} 20. O-O-O {[%clk 0:01:27.8]} 20... e4 {[%clk 0:01:37.8]} 21. d4
{[%clk 0:01:12.8]} 21... cxd4 {[%clk 0:01:35.6]} 22. Rxd4 {[%clk 0:01:13.5]}
22... Ne5 {[%clk 0:01:36.1]} 23. cxb5 {[%clk 0:00:51.4]} 23... Nd3+ {[%clk
0:01:35.5]} 24. Rxd3 {[%clk 0:00:37.5]} 24... exd3 {[%clk 0:01:34.9]} 25. bxa6
{[%clk 0:00:38.2]} 25... Re2 {[%clk 0:01:23.9]} 26. Rd1 {[%clk 0:00:34.1]} 26...
Ra8 {[%clk 0:00:31.6]} 27. Rxd3 {[%clk 0:00:33.5]} 27... Rxa6 {[%clk 0:00:30.8]}
28. Rf3 {[%clk 0:00:33.6]} 28... Rb6 {[%clk 0:00:28.2]} 29. Bb3 {[%clk
0:00:33.8]} 29... Kg7 {[%clk 0:00:20.6]} 30. Bc2 {[%clk 0:00:32.9]} 30... Rb5
{[%clk 0:00:16]} 31. Kd1 {[%clk 0:00:12.8]} 31... Re5 {[%clk 0:00:15.8]} 32. Bb3
{[%clk 0:00:12.2]} 32... Kf6 {[%clk 0:00:14.5]} 33. Kd2 {[%clk 0:00:12.5]} 33...
Re8 {[%clk 0:00:11.5]} 34. Kc3 {[%clk 0:00:12.7]} 34... Reb8 {[%clk 0:00:11.8]}
35. Kc2 {[%clk 0:00:12.6]} 35... Rc5+ {[%clk 0:00:11.7]} 36. Kb1 {[%clk
0:00:12.2]} 36... Ke5 {[%clk 0:00:12]} 37. Bc2 {[%clk 0:00:10.6]} 37... Rxd5
{[%clk 0:00:07.8]} 38. Rxf5+ {[%clk 0:00:10.4]} 38... Ke6 {[%clk 0:00:05.9]} 39.
Rf4 {[%clk 0:00:08.7]} 39... Re5 {[%clk 0:00:06]} 40. b4 {[%clk 0:00:07]} 40...
Re1+ {[%clk 0:00:05.5]} 41. Kb2 {[%clk 0:00:07.2]} 41... Rb6 {[%clk 0:00:06.1]}
42. Bb3+ {[%clk 0:00:07.3]} 42... Ke7 {[%clk 0:00:05.3]} 43. Rxf7+ {[%clk
0:00:07.4]} 43... Kd8 {[%clk 0:00:05.7]} 44. Rf8+ {[%clk 0:00:07.4]} 44... Kd7
{[%clk 0:00:05.5]} 45. Rf4 {[%clk 0:00:06.9]} 45... Rd6 {[%clk 0:00:04.2]} 46.
Kc3 {[%clk 0:00:06.7]} 46... Re2 {[%clk 0:00:04]} 47. a4 {[%clk 0:00:05.9]}
47... Rc6+ {[%clk 0:00:03.3]} 48. Bc4 {[%clk 0:00:05.7]} 48... Re1 {[%clk
0:00:03.2]} 49. a5 {[%clk 0:00:04.9]} 49... Rc1+ {[%clk 0:00:01.2]} 50. Kd3
{[%clk 0:00:05.1]} 50... Rd1+ {[%clk 0:00:01.5]} 51. Kc2 {[%clk 0:00:05]} 1-0

[Event "Early-Titled-Tuesday-Blitz-January-30-2024"]
[Site "Chess.com"]
[Date "2024.01.30"]
[Round "8"]
[White "topalovkramnik"]
[Black "Doublekk14"]
[Result "1/2-1/2"]
[WhiteElo "2437"]
[BlackElo "2269"]
[TimeControl "180+1"]
[EndTime "9:30:53 PST"]
[Termination "Game drawn - insufficient material"]

1. e4 {[%clk 0:03:00.9]} 1... c5 {[%clk 0:02:52.2]} 2. Nf3 {[%clk 0:02:59.8]}
2... e6 {[%clk 0:02:51.5]} 3. d4 {[%clk 0:03:00.3]} 3... cxd4 {[%clk 0:02:51.3]}
4. Nxd4 {[%clk 0:03:01.2]} 4... Nf6 {[%clk 0:02:51]} 5. Nc3 {[%clk 0:03:01.8]}
5... Nc6 {[%clk 0:02:50.5]} 6. Nxc6 {[%clk 0:03:01.5]} 6... bxc6 {[%clk
0:02:50.2]} 7. e5 {[%clk 0:03:02.1]} 7... Nd5 {[%clk 0:02:49.2]} 8. Ne4 {[%clk
0:03:00.9]} 8... f5 {[%clk 0:02:49.2]} 9. exf6 {[%clk 0:02:53.8]} 9... Nxf6
{[%clk 0:02:49.1]} 10. Nd6+ {[%clk 0:02:53.7]} 10... Bxd6 {[%clk 0:02:49.5]} 11.
Qxd6 {[%clk 0:02:54]} 11... Qe7 {[%clk 0:02:50.4]} 12. Bf4 {[%clk 0:02:39.2]}
12... Qxd6 {[%clk 0:02:49.3]} 13. Bxd6 {[%clk 0:02:40.1]} 13... Ne4 {[%clk
0:02:49.9]} 14. Be5 {[%clk 0:02:37.8]} 14... O-O {[%clk 0:02:46.3]} 15. Bd4
{[%clk 0:02:30.7]} 15... d5 {[%clk 0:02:43.4]} 16. Bd3 {[%clk 0:02:28]} 16...
Nf6 {[%clk 0:02:37.1]} 17. O-O-O {[%clk 0:02:24.8]} 17... a5 {[%clk 0:02:36.6]}
18. Rhe1 {[%clk 0:02:23.3]} 18... Re8 {[%clk 0:02:36.5]} 19. f4 {[%clk
0:02:17.4]} 19... Ba6 {[%clk 0:02:36]} 20. Kb1 {[%clk 0:01:31.4]} 20... a4
{[%clk 0:02:30.5]} 21. h3 {[%clk 0:01:28.5]} 21... Bxd3 {[%clk 0:02:25.6]} 22.
cxd3 {[%clk 0:01:21.6]} 22... a3 {[%clk 0:02:21.2]} 23. Rc1 {[%clk 0:01:12.4]}
23... axb2 {[%clk 0:02:17.2]} 24. Rxc6 {[%clk 0:01:09.7]} 24... Kf7 {[%clk
0:01:49.6]} 25. Re2 {[%clk 0:01:02.3]} 25... Ra4 {[%clk 0:01:44]} 26. Be5 {[%clk
0:00:46.5]} 26... Nd7 {[%clk 0:01:43]} 27. Rc7 {[%clk 0:00:45.9]} 27... Rd8
{[%clk 0:01:32.6]} 28. g3 {[%clk 0:00:38.9]} 28... Kg6 {[%clk 0:01:14.1]} 29.
Bxb2 {[%clk 0:00:38.1]} 29... Ra6 {[%clk 0:01:14.1]} 30. g4 {[%clk 0:00:35.4]}
30... Nf6 {[%clk 0:01:11.4]} 31. Rxe6 {[%clk 0:00:29.4]} 31... Rxe6 {[%clk
0:01:10.2]} 32. f5+ {[%clk 0:00:30]} 32... Kh6 {[%clk 0:00:54.4]} 33. fxe6
{[%clk 0:00:29.3]} 33... Re8 {[%clk 0:00:50.8]} 34. e7 {[%clk 0:00:19.4]} 34...
Ng8 {[%clk 0:00:42.8]} 35. Ba3 {[%clk 0:00:18.9]} 35... Kg6 {[%clk 0:00:38.3]}
36. h4 {[%clk 0:00:17.2]} 36... Kf7 {[%clk 0:00:37.3]} 37. Kc2 {[%clk
0:00:16.1]} 37... Ke6 {[%clk 0:00:37.3]} 38. Bb4 {[%clk 0:00:13.9]} 38... Nf6
{[%clk 0:00:35.6]} 39. g5 {[%clk 0:00:13]} 39... Nd7 {[%clk 0:00:34.4]} 40. Rc6+
{[%clk 0:00:11.5]} 40... Ke5 {[%clk 0:00:32.5]} 41. Kc3 {[%clk 0:00:10.8]} 41...
Kf4 {[%clk 0:00:21.5]} 42. Kd4 {[%clk 0:00:06.1]} 42... Kg4 {[%clk 0:00:21.2]}
43. Rd6 {[%clk 0:00:05]} 43... Nb8 {[%clk 0:00:19.6]} 44. Rd8 {[%clk 0:00:04.8]}
44... Nc6+ {[%clk 0:00:19.8]} 45. Kxd5 {[%clk 0:00:03.9]} 45... Nxd8 {[%clk
0:00:18.6]} 46. Kd6 {[%clk 0:00:04.3]} 46... Rxe7 {[%clk 0:00:11.8]} 47. Kxe7
{[%clk 0:00:04.3]} 47... Nc6+ {[%clk 0:00:12.3]} 48. Kf7 {[%clk 0:00:04.2]}
48... Nxb4 {[%clk 0:00:12.1]} 49. Kxg7 {[%clk 0:00:04.8]} 49... Kxh4 {[%clk
0:00:12]} 50. a3 {[%clk 0:00:03.7]} 50... Nxd3 {[%clk 0:00:11.6]} 51. Kxh7
{[%clk 0:00:03.3]} 51... Kxg5 {[%clk 0:00:11.5]} 52. Kg7 {[%clk 0:00:04.2]}
52... Kf5 {[%clk 0:00:11.5]} 53. Kf7 {[%clk 0:00:05.1]} 53... Ke5 {[%clk
0:00:11.6]} 54. Ke7 {[%clk 0:00:06]} 54... Kd5 {[%clk 0:00:11.8]} 55. Kd7 {[%clk
0:00:06.9]} 55... Kc5 {[%clk 0:00:11.5]} 56. a4 {[%clk 0:00:07.8]} 56... Kb4
{[%clk 0:00:11.6]} 57. a5 {[%clk 0:00:08.7]} 57... Kxa5 {[%clk 0:00:11.9]}
1/2-1/2